Workbook

Sheet ОПН-П-110 550-680 А
A1: ОПН-П | B1: Класс напряжения сети, кВ | C1: Наибольшее длительно допустимое рабочее напряжение, кВдейств. | D1: Номинальный разрядный ток, кА | E1: Ток пропускной способности ограничителя, А | F1: Степень загрязнения по ГОСТ Р 52725 | G1: Климатическое исполнение по ГОСТ 15150 | H1: Наличие изолирующего пакета (да/нет) | I1: Наличие монтажного основания (да/нет) | J1: Количество фаз, шт. | K1: Коэффициент перерасчета | L1: Остающееся напряжение варистора, кВ | M1: Курс доллара, руб. | O1: Ток пропускной способности ограничителя, А | P1: Степень загрязнения по ГОСТ Р 52725 | Q1: Ответ (Да/Нет)
B2: 110 | C2: 56 | D2: 10 | E2: 500 | F2: IV | G2: УХЛ1 | H2: Нет | I2: Нет | J2: 1 | K2: 3.3 | L2: 8,0 | M2: 35.2 | O2: 500 | P2: I | Q2: Да
O3: 550 | P3: II | Q3: Нет
A4: № п/п | B4: Наименование | F4: Пояснение | J4: Кол-во в комплекте | K4: Цена за шт. | L4: Стоимость комлпекта | O4: 680 | P4: III
J5: шт. | K5: руб. | L5: руб. | O5: 850 | P5: IV
A6: 1 | B6: Покрышка 40 рёбер | F6: СЕБД.757523.503 | J6: =IF(AND(61<=C2,C2<=100),1,0)*J2 -> 0 | K6: 5350 | L6: =J6*K6 -> 0 | O6: 1000
A7: 2 | B7: Покрышка 32 ребра | F7: СЕБД.757523.503 | J7: =IF(AND(52<=C2,C2<=60),1,0)*J2 -> 1 | K7: 4230 | L7: =J7*K7 -> 4230 | O7: 1200
A8: 3 | B8: Покрышка 12 рёбер | F8: СЕБД.757523.503 | J8: =IF(F2="IV","1","0")*J2 -> 1 | K8: 2100 | L8: =J8*K8 -> 2100 | O8: 1500
A9: 4 | B9: Варисторы | F9: Китай ⌀46х21 мм | J9: =ROUNDUP(C2*K2/L2,0)*J2 -> 24 | K9: =3.2*M2 -> 112.64 | L9: =J9*K9 -> 2703.36
A10: 5 | B10: Бобышка | F10: СЕБД.711461.505 | J10: =1*J2+1*J8 -> 2 | K10: 33 | L10: =J10*K10 -> 66
A11: 6 | B11: Бобышка | F11: СЕБД.758491.503 | J11: =1*J2+1*J8 -> 2 | K11: 33 | L11: 66
A12: 7 | B12: Шайба | F12: СЕБД.754151.505 | J12: =3*J2+3*J8 -> 6 | K12: 5 | L12: 30
A13: 8 | B13: Добавка | F13: Труба ⌀45х2,5 мм | J13: =((0.92-0.18*J7/J2)-(0.021*J9/J2)+(0.3*J8/J2))*J2 -> 0.536 | K13: 285.79 | L13: =J13*K13 -> 153.18344
A14: 9 | B14: Тератен | F14: ТУТ D 50/20 | J14: =(1-0.15*J7/J2+0.35*J8/J2)*J2 -> 1.2 | K14: 120 | L14: 144
A15: 10 | B15: Пружина | F15: СЕБД.753571.503 | J15: =1*J2+1*J8 -> 2 | K15: 35 | L15: 70
A16: 11 | B16: Шайба | F16: СЕБД.711461.506 | J16: =2*J2+2*J8 -> 4 | K16: 21 | L16: 84
A17: 12 | B17: Провод с наконечниками | F17: СЕБД.301634.503 | J17: =1*J2+1*J8 -> 2 | K17: 50 | L17: 100
A18: 13 | B18: Фланец верхний | F18: СЕБД.753112.503 | J18: =1*J2 -> 1 | K18: 200 | L18: 200
A19: 14 | B19: Фланец нижний (маленький) | F19: СЕБД.711361.503 | J19: =IF(H2="Да","0","1")*J2 -> 1 | K19: 276 | L19: 276
A20: 15 | B20: Фланец нижний (большой) | F20: СЕБД.753112.503 | J20: =IF(H2="Да","1","0")*J2 -> 0 | K20: 417 | L20: 0
A21: 16 | B21: Фланец средний (муфта) | F21: СЕБД.711361.009 | J21: =IF(F2="IV","1","0")*J2 -> 1 | K21: 350 | L21: =J21*K21 -> 350
A22: 17 | B22: СКТН | F22: кг | J22: =(0.5-0.1*J7/J2+0.2*J8/J2)*J2 -> 0.6 | K22: 285 | L22: 171
A23: 18 | B23: Втулка (фарфоровая) | F23: СЕБД.757513.501 | J23: =IF(H2="Да","8","0")*J2 -> 0 | K23: 15 | L23: 0
A24: 19 | B24: Трубка изоляционная | F24: СЕБД.723146.501 | J24: =IF(H2="Да","4","0")*J2 -> 0 | K24: 20 | L24: 0
A25: 20 | B25: Шайба стальная | F25: СЕБД.758491.504 | J25: =IF(H2="Да","8","0")*J2 -> 0 | K25: 10 | L25: 0
A26: 21 | B26: Шайба паронитовая | F26: СЕБД.758491.505 | J26: =IF(H2="Да","16","0")*J2 -> 0 | K26: 5 | L26: 0
A27: 22 | B27: Основание | F27: СЕБД.741422.501 | J27: =IF(I2="Да","1","0")*J2 -> 0 | K27: 1200 | L27: 0
A28: 23 | B28: Экран | F28: СЕБД.686475.501 | J28: =IF(C2>=88,"1","0")*J2 -> 0 | K28: 2000 | L28: 0
A29: 24 | B29: Шильд | F29: Теса | J29: =1*J2 -> 1 | K29: 50 | L29: 50
A30: 25 | B30: Упаковка | J30: =1*J2 -> 1 | K30: 260 | L30: 260
A31: 26 | B31: Крепеж | J31: =1*J2 -> 1 | K31: 200 | L31: 200
K33: Итого: | L33: =SUM(L6:M31) -> 11253.54344
